[Event "Early-Titled-Tuesday-Blitz-April-02-2024"]
[Site "Chess.com"]
[Date "2024.04.02"]
[Round "2"]
[White "GlavkonVVS"]
[Black "DenLaz"]
[Result "0-1"]
[WhiteElo "2657"]
[BlackElo "3113"]
[TimeControl "180+1"]
[EndTime "8:17:50 PDT"]
[Termination "DenLaz won on time"]

1. c4 {[%clk 0:03:00.9]} 1... f5 {[%clk 0:03:00.1]} 2. Nc3 {[%clk 0:03:00.8]}
2... Nf6 {[%clk 0:03:00.7]} 3. g3 {[%clk 0:03:01.3]} 3... g6 {[%clk 0:03:01.3]}
4. Bg2 {[%clk 0:03:01.9]} 4... Bg7 {[%clk 0:03:02.1]} 5. d3 {[%clk 0:03:02.6]}
5... O-O {[%clk 0:03:02.2]} 6. Nf3 {[%clk 0:03:02.6]} 6... d6 {[%clk 0:03:02.2]}
7. Rb1 {[%clk 0:03:00.5]} 7... e5 {[%clk 0:03:02.3]} 8. b4 {[%clk 0:02:59.2]}
8... e4 {[%clk 0:02:57.1]} 9. dxe4 {[%clk 0:02:48.2]} 9... fxe4 {[%clk
0:02:56.4]} 10. Ng5 {[%clk 0:02:41.4]} 10... e3 {[%clk 0:02:48.9]} 11. Bxe3
{[%clk 0:02:29.9]} 11... Ng4 {[%clk 0:02:48]} 12. Qd5+ {[%clk 0:01:51.2]} 12...
Kh8 {[%clk 0:02:46.9]} 13. Bd2 {[%clk 0:01:49.2]} 13... Qe7 {[%clk 0:01:57.3]}
14. O-O {[%clk 0:01:35.9]} 14... Nc6 {[%clk 0:01:56.6]} 15. c5 {[%clk
0:01:29.4]} 15... Bf5 {[%clk 0:01:02.6]} 16. cxd6 {[%clk 0:01:23.6]} 16... cxd6
{[%clk 0:01:02.4]} 17. Nge4 {[%clk 0:01:01.6]} 17... Nf6 {[%clk 0:00:53.8]} 18.
Nxf6 {[%clk 0:00:59.4]} 18... Bxb1 {[%clk 0:00:52.5]} 19. Rxb1 {[%clk
0:00:35.4]} 19... Bxf6 {[%clk 0:00:48.5]} 20. Ne4 {[%clk 0:00:23.3]} 20... Be5
{[%clk 0:00:48.6]} 21. e3 {[%clk 0:00:19]} 21... Rae8 {[%clk 0:00:34.8]} 22. b5
{[%clk 0:00:18.7]} 22... Nd8 {[%clk 0:00:35.2]} 23. f4 {[%clk 0:00:18.2]} 23...
Bg7 {[%clk 0:00:19.8]} 24. Nxd6 {[%clk 0:00:18.5]} 24... Ne6 {[%clk 0:00:18.2]}
25. Nxe8 {[%clk 0:00:18.6]} 25... Rxe8 {[%clk 0:00:19.1]} 26. Bb4 {[%clk
0:00:17.7]} 26... Qf6 {[%clk 0:00:17.2]} 27. Qxb7 {[%clk 0:00:16]} 27... Qf5
{[%clk 0:00:12.5]} 28. Be4 {[%clk 0:00:14.1]} 28... Qh3 {[%clk 0:00:10.8]} 29.
Qc6 {[%clk 0:00:14.7]} 29... Rd8 {[%clk 0:00:08.9]} 30. Bg2 {[%clk 0:00:14.1]}
30... Qf5 {[%clk 0:00:09.1]} 31. e4 {[%clk 0:00:14.1]} 31... Qf7 {[%clk
0:00:08.2]} 32. e5 {[%clk 0:00:12.7]} 32... Nd4 {[%clk 0:00:08.6]} 33. Qe4
{[%clk 0:00:12.3]} 33... Qxa2 {[%clk 0:00:08.9]} 34. Bd6 {[%clk 0:00:11.2]}
34... Ne2+ {[%clk 0:00:08.7]} 35. Kh1 {[%clk 0:00:11.4]} 35... Nc3 {[%clk
0:00:09.6]} 36. Qc6 {[%clk 0:00:04.3]} 36... Qxb1+ {[%clk 0:00:09.7]} 0-1

[Event "Early-Titled-Tuesday-Blitz-April-02-2024"]
[Site "Chess.com"]
[Date "2024.04.02"]
[Round "2"]
[White "yaguigor"]
[Black "Robert_Chessmood"]
[Result "0-1"]
[WhiteElo "2632"]
[BlackElo "2972"]
[TimeControl "180+1"]
[EndTime "8:17:51 PDT"]
[Termination "Robert_Chessmood won by checkmate"]

1. e4 {[%clk 0:03:00.9]} 1... c6 {[%clk 0:02:56.2]} 2. d4 {[%clk 0:02:59.7]}
2... d5 {[%clk 0:02:56.5]} 3. e5 {[%clk 0:03:00.1]} 3... Bf5 {[%clk 0:02:55.5]}
4. h4 {[%clk 0:02:59.6]} 4... Qc7 {[%clk 0:02:53.6]} 5. Bd3 {[%clk 0:02:48.2]}
5... Bxd3 {[%clk 0:02:52.6]} 6. Qxd3 {[%clk 0:02:47.6]} 6... e6 {[%clk
0:02:52.5]} 7. h5 {[%clk 0:02:42.7]} 7... c5 {[%clk 0:02:52.4]} 8. Nf3 {[%clk
0:02:37.2]} 8... cxd4 {[%clk 0:02:50.4]} 9. Na3 {[%clk 0:02:27.9]} 9... Bxa3
{[%clk 0:02:46.7]} 10. Qxa3 {[%clk 0:02:26.8]} 10... Nc6 {[%clk 0:02:17.9]} 11.
Bf4 {[%clk 0:02:25]} 11... Nge7 {[%clk 0:02:15.7]} 12. h6 {[%clk 0:02:24.2]}
12... gxh6 {[%clk 0:02:13.6]} 13. Rxh6 {[%clk 0:02:13.4]} 13... Nf5 {[%clk
0:02:03.6]} 14. Rh5 {[%clk 0:02:12.4]} 14... O-O-O {[%clk 0:02:02.6]} 15. g4
{[%clk 0:02:00.5]} 15... Nfe7 {[%clk 0:02:02.5]} 16. O-O-O {[%clk 0:01:55]}
16... Ng6 {[%clk 0:02:00.8]} 17. Bg5 {[%clk 0:01:46.4]} 17... Rd7 {[%clk
0:01:09]} 18. Bf6 {[%clk 0:01:46.2]} 18... Rg8 {[%clk 0:01:09.3]} 19. Nxd4
{[%clk 0:01:40.8]} 19... Ngxe5 {[%clk 0:00:44.5]} 20. Nb5 {[%clk 0:01:29.9]}
20... Qb6 {[%clk 0:00:23.2]} 21. Nd6+ {[%clk 0:01:25.9]} 21... Rxd6 {[%clk
0:00:23.3]} 22. Qxd6 {[%clk 0:01:25.2]} 22... Nc4 {[%clk 0:00:22.2]} 23. Qg3
{[%clk 0:01:25]} 23... Rg6 {[%clk 0:00:15.3]} 24. Qc3 {[%clk 0:01:10.9]} 24...
Qxf2 {[%clk 0:00:10.3]} 25. b3 {[%clk 0:01:07.2]} 25... Qf4+ {[%clk 0:00:06.5]}
26. Kb1 {[%clk 0:01:03.7]} 26... Na3+ {[%clk 0:00:06]} 27. Kb2 {[%clk
0:01:02.5]} 27... Qxf6 {[%clk 0:00:04.5]} 28. Qxf6 {[%clk 0:00:59.9]} 28... Rxf6
{[%clk 0:00:05.4]} 29. Kxa3 {[%clk 0:01:00.2]} 29... Rf2 {[%clk 0:00:05.4]} 30.
c3 {[%clk 0:00:55.4]} 30... Kd7 {[%clk 0:00:03.9]} 31. Rxh7 {[%clk 0:00:54.8]}
31... Ne5 {[%clk 0:00:04.2]} 32. g5 {[%clk 0:00:52.4]} 32... Kd6 {[%clk
0:00:03.1]} 33. Rg7 {[%clk 0:00:49.3]} 33... b5 {[%clk 0:00:02.5]} 34. Kb4
{[%clk 0:00:45.8]} 34... Rxa2 {[%clk 0:00:01.1]} 35. Kxb5 {[%clk 0:00:45.6]}
35... Nc6 {[%clk 0:00:01.8]} 36. b4 {[%clk 0:00:43.7]} 36... Ne5 {[%clk
0:00:01.6]} 37. g6 {[%clk 0:00:41]} 37... Nc4 {[%clk 0:00:01.9]} 38. Rxd5+
{[%clk 0:00:18.4]} 38... exd5 {[%clk 0:00:02.8]} 39. Rxf7 {[%clk 0:00:17.5]}
39... a6# {[%clk 0:00:03.1]} 0-1

[Event "Early-Titled-Tuesday-Blitz-April-02-2024"]
[Site "Chess.com"]
[Date "2024.04.02"]
[Round "2"]
[White "KnightmareJoker"]
[Black "CarlosjPineror"]
[Result "0-1"]
[WhiteElo "2322"]
[BlackElo "2680"]
[TimeControl "180+1"]
[EndTime "8:17:53 PDT"]
[Termination "CarlosjPineror won by resignation"]

1. e4 {[%clk 0:03:00.9]} 1... c5 {[%clk 0:03:00]} 2. Nf3 {[%clk 0:03:01.3]} 2...
e6 {[%clk 0:03:00.3]} 3. d4 {[%clk 0:03:01.8]} 3... cxd4 {[%clk 0:03:01.2]} 4.
Nxd4 {[%clk 0:03:02.6]} 4... a6 {[%clk 0:03:02]} 5. Nc3 {[%clk 0:03:03]} 5...
Qc7 {[%clk 0:03:02.6]} 6. Be2 {[%clk 0:03:02.6]} 6... Nf6 {[%clk 0:02:57.7]} 7.
O-O {[%clk 0:03:02.5]} 7... Be7 {[%clk 0:02:57]} 8. Be3 {[%clk 0:02:59.3]} 8...
d6 {[%clk 0:02:57.2]} 9. f4 {[%clk 0:02:59.4]} 9... Nbd7 {[%clk 0:02:52.9]} 10.
g4 {[%clk 0:02:59]} 10... Nc5 {[%clk 0:02:43.4]} 11. Bf3 {[%clk 0:02:52.1]}
11... h6 {[%clk 0:02:30]} 12. e5 {[%clk 0:02:36.4]} 12... dxe5 {[%clk
0:02:28.3]} 13. fxe5 {[%clk 0:02:37.1]} 13... Qxe5 {[%clk 0:02:25.5]} 14. Bf4
{[%clk 0:02:37.3]} 14... Qxf4 {[%clk 0:02:11.4]} 15. Bc6+ {[%clk 0:02:37.6]}
15... bxc6 {[%clk 0:02:12]} 16. Rxf4 {[%clk 0:02:38]} 16... e5 {[%clk
0:02:10.8]} 17. Rf1 {[%clk 0:02:00.6]} 17... exd4 {[%clk 0:02:09.8]} 18. Qxd4
{[%clk 0:02:01.3]} 18... Ne6 {[%clk 0:02:09.8]} 19. Qa4 {[%clk 0:01:57.7]} 19...
O-O {[%clk 0:02:08.4]} 20. Ne4 {[%clk 0:01:52.7]} 20... Nxg4 {[%clk 0:02:02]}
21. Nf2 {[%clk 0:01:25.7]} 21... Ne5 {[%clk 0:01:59.5]} 22. Ng4 {[%clk
0:01:23.8]} 22... Nxg4 {[%clk 0:01:50.1]} 23. Qxg4 {[%clk 0:01:23.7]} 23... c5
{[%clk 0:01:47]} 24. Qe4 {[%clk 0:01:17.2]} 24... Rb8 {[%clk 0:01:43.7]} 25. Qe5
{[%clk 0:00:58.6]} 25... Rb4 {[%clk 0:01:38]} 26. Rf2 {[%clk 0:00:53.3]} 26...
Bb7 {[%clk 0:01:36]} 27. h3 {[%clk 0:00:42]} 27... Re4 {[%clk 0:01:33.1]} 28.
Qg3 {[%clk 0:00:39.1]} 28... c4 {[%clk 0:01:31.2]} 29. Rg2 {[%clk 0:00:37.8]}
29... Bc5+ {[%clk 0:01:28.3]} 30. Kh2 {[%clk 0:00:38.2]} 30... Re3 {[%clk
0:01:24]} 31. Qg4 {[%clk 0:00:27.5]} 31... Ng5 {[%clk 0:00:57.9]} 32. h4 {[%clk
0:00:20]} 32... Rh3+ {[%clk 0:00:49.1]} 33. Qxh3 {[%clk 0:00:15.7]} 33... Nxh3
{[%clk 0:00:50]} 34. Kxh3 {[%clk 0:00:11.5]} 34... Bxg2+ {[%clk 0:00:49.7]} 35.
Kxg2 {[%clk 0:00:12.4]} 35... Rd8 {[%clk 0:00:49.9]} 36. Kf3 {[%clk 0:00:09.8]}
36... Rd2 {[%clk 0:00:48.1]} 37. Rc1 {[%clk 0:00:10.4]} 37... f5 {[%clk
0:00:47.6]} 38. Kf4 {[%clk 0:00:09.8]} 38... g6 {[%clk 0:00:45.8]} 39. h5 {[%clk
0:00:10.3]} 39... Bd6+ {[%clk 0:00:39.1]} 40. Ke3 {[%clk 0:00:10]} 40... Rg2
{[%clk 0:00:38.1]} 41. hxg6 {[%clk 0:00:10.2]} 41... Kg7 {[%clk 0:00:37.9]} 42.
Rd1 {[%clk 0:00:09.8]} 42... Be5 {[%clk 0:00:36.5]} 43. b3 {[%clk 0:00:07]}
43... Rxc2 {[%clk 0:00:35.3]} 44. bxc4 {[%clk 0:00:06.5]} 44... Rxc4 {[%clk
0:00:35.8]} 45. Rd5 {[%clk 0:00:07.2]} 45... Bf6 {[%clk 0:00:33.2]} 46. Rd7+
{[%clk 0:00:06.3]} 46... Kxg6 {[%clk 0:00:33.2]} 47. Rd6 {[%clk 0:00:06.8]}
47... Ra4 {[%clk 0:00:33.7]} 48. Rd2 {[%clk 0:00:06.4]} 48... Bg5+ {[%clk
0:00:33.7]} 49. Kd3 {[%clk 0:00:07]} 49... Bxd2 {[%clk 0:00:34.6]} 0-1

[Event "Early-Titled-Tuesday-Blitz-April-02-2024"]
[Site "Chess.com"]
[Date "2024.04.02"]
[Round "2"]
[White "TheoSlade"]
[Black "Martial2008"]
[Result "0-1"]
[WhiteElo "2400"]
[BlackElo "2643"]
[TimeControl "180+1"]
[EndTime "8:17:53 PDT"]
[Termination "Martial2008 won by resignation"]

1. d4 {[%clk 0:03:00.9]} 1... Nf6 {[%clk 0:02:59.7]} 2. c4 {[%clk 0:03:01.2]}
2... e6 {[%clk 0:02:56.2]} 3. g3 {[%clk 0:03:01.6]} 3... d5 {[%clk 0:02:54.6]}
4. Bg2 {[%clk 0:03:02.1]} 4... dxc4 {[%clk 0:02:49.5]} 5. Nf3 {[%clk 0:03:02.6]}
5... Bd7 {[%clk 0:02:43]} 6. Ne5 {[%clk 0:03:00.9]} 6... Bc6 {[%clk 0:02:42.8]}
7. Nxc6 {[%clk 0:02:56.5]} 7... Nxc6 {[%clk 0:02:43.7]} 8. Qa4 {[%clk
0:02:46.7]} 8... Bb4+ {[%clk 0:02:31.6]} 9. Bd2 {[%clk 0:02:47.2]} 9... Bxd2+
{[%clk 0:02:30.9]} 10. Nxd2 {[%clk 0:02:47.9]} 10... O-O {[%clk 0:02:31.2]} 11.
Bxc6 {[%clk 0:02:43.2]} 11... bxc6 {[%clk 0:02:31]} 12. Qxc4 {[%clk 0:02:43.1]}
12... Qd5 {[%clk 0:02:28.4]} 13. O-O {[%clk 0:02:36.7]} 13... Rfd8 {[%clk
0:02:26.5]} 14. Qxd5 {[%clk 0:02:18.5]} 14... Rxd5 {[%clk 0:02:22.9]} 15. Nb3
{[%clk 0:02:16.1]} 15... a5 {[%clk 0:02:21.4]} 16. e3 {[%clk 0:01:54.1]} 16...
a4 {[%clk 0:02:16.8]} 17. Nc5 {[%clk 0:01:54.6]} 17... e5 {[%clk 0:02:16.9]} 18.
Rfd1 {[%clk 0:01:45.6]} 18... exd4 {[%clk 0:02:16.5]} 19. exd4 {[%clk 0:01:46]}
19... Nd7 {[%clk 0:02:13.6]} 20. Nxd7 {[%clk 0:01:37.9]} 20... Rxd7 {[%clk
0:02:14.5]} 21. Rac1 {[%clk 0:01:38.2]} 21... Rb8 {[%clk 0:02:08.1]} 22. Rxc6
{[%clk 0:01:29.8]} 22... g6 {[%clk 0:01:55.7]} 23. Rd2 {[%clk 0:01:12.8]} 23...
Rb4 {[%clk 0:01:53.8]} 24. Rdc2 {[%clk 0:01:12.6]} 24... Kf8 {[%clk 0:01:18.3]}
25. a3 {[%clk 0:01:11.2]} 25... Rbxd4 {[%clk 0:01:05.7]} 26. Rxc7 {[%clk
0:01:11.2]} 26... Rxc7 {[%clk 0:00:58.2]} 27. Rxc7 {[%clk 0:01:11.8]} 27... Rd2
{[%clk 0:00:58.9]} 28. Ra7 {[%clk 0:00:54.1]} 28... Rxb2 {[%clk 0:00:57.3]} 29.
g4 {[%clk 0:00:48]} 29... Rb5 {[%clk 0:00:48.2]} 30. Rxa4 {[%clk 0:00:29.6]}
30... h5 {[%clk 0:00:48]} 31. h3 {[%clk 0:00:29]} 31... Kg7 {[%clk 0:00:48.2]}
32. Kg2 {[%clk 0:00:26.7]} 32... hxg4 {[%clk 0:00:45.3]} 33. hxg4 {[%clk
0:00:26.8]} 33... Rb3 {[%clk 0:00:45.4]} 34. Ra7 {[%clk 0:00:25.4]} 34... Kf6
{[%clk 0:00:45.4]} 35. f3 {[%clk 0:00:25.2]} 35... Kg5 {[%clk 0:00:44.2]} 36.
Kg3 {[%clk 0:00:23.4]} 36... f5 {[%clk 0:00:41.1]} 37. Ra5 {[%clk 0:00:22.1]}
37... Rc3 {[%clk 0:00:36.9]} 38. Ra4 {[%clk 0:00:22.3]} 38... f4+ {[%clk
0:00:32.5]} 39. Rxf4 {[%clk 0:00:17.6]} 39... Rxa3 {[%clk 0:00:32.8]} 40. Rb4
{[%clk 0:00:18.2]} 40... Rc3 {[%clk 0:00:33]} 41. Rb5+ {[%clk 0:00:18.7]} 41...
Kh6 {[%clk 0:00:32.8]} 42. Ra5 {[%clk 0:00:14]} 42... Rb3 {[%clk 0:00:33]} 43.
Kf4 {[%clk 0:00:13.4]} 43... Rb4+ {[%clk 0:00:32.9]} 44. Kg3 {[%clk 0:00:14]}
44... Rb3 {[%clk 0:00:33]} 45. Rc5 {[%clk 0:00:14]} 45... Ra3 {[%clk 0:00:33.2]}
46. g5+ {[%clk 0:00:14]} 46... Kh5 {[%clk 0:00:32.2]} 47. Re5 {[%clk 0:00:13.6]}
47... Rb3 {[%clk 0:00:31.1]} 48. Rd5 {[%clk 0:00:13.4]} 48... Rb1 {[%clk
0:00:31.4]} 49. f4 {[%clk 0:00:10.3]} 49... Rb3+ {[%clk 0:00:31.6]} 50. Kf2
{[%clk 0:00:10.2]} 50... Kg4 {[%clk 0:00:32.2]} 51. Rd4 {[%clk 0:00:09.7]} 51...
Kf5 {[%clk 0:00:32.1]} 52. Rb4 {[%clk 0:00:09.6]} 52... Rxb4 {[%clk 0:00:32]}
0-1

[Event "Early-Titled-Tuesday-Blitz-April-02-2024"]
[Site "Chess.com"]
[Date "2024.04.02"]
[Round "2"]
[White "GalaxyRoman"]
[Black "Antosha_Chekhonte"]
[Result "1-0"]
[WhiteElo "2840"]
[BlackElo "2587"]
[TimeControl "180+1"]
[EndTime "8:17:54 PDT"]
[Termination "GalaxyRoman won by resignation"]

1. e4 {[%clk 0:03:00.9]} 1... c6 {[%clk 0:02:59.6]} 2. Nc3 {[%clk 0:02:59.7]}
2... d5 {[%clk 0:02:59.9]} 3. Nf3 {[%clk 0:03:00.3]} 3... dxe4 {[%clk
0:03:00.4]} 4. Nxe4 {[%clk 0:03:01.2]} 4... Nf6 {[%clk 0:03:00.9]} 5. Qe2 {[%clk
0:03:00.9]} 5... Na6 {[%clk 0:03:01.2]} 6. d4 {[%clk 0:02:54.9]} 6... Nxe4
{[%clk 0:02:58]} 7. Qxe4 {[%clk 0:02:55.8]} 7... Qd5 {[%clk 0:02:58.5]} 8. Qxd5
{[%clk 0:02:55.1]} 8... cxd5 {[%clk 0:02:58.7]} 9. c3 {[%clk 0:02:54]} 9... Nb8
{[%clk 0:02:58.3]} 10. Bd3 {[%clk 0:02:51.2]} 10... Nc6 {[%clk 0:02:55.8]} 11.
h3 {[%clk 0:02:48.7]} 11... e6 {[%clk 0:02:42.5]} 12. Bf4 {[%clk 0:02:45.9]}
12... Be7 {[%clk 0:02:41.5]} 13. Ne5 {[%clk 0:02:29.5]} 13... Nxe5 {[%clk
0:02:38.6]} 14. Bxe5 {[%clk 0:02:30.4]} 14... f6 {[%clk 0:02:37.5]} 15. Bh2
{[%clk 0:02:28]} 15... Kf7 {[%clk 0:02:37.5]} 16. Kd2 {[%clk 0:02:27.9]} 16...
Bd7 {[%clk 0:02:37.1]} 17. a4 {[%clk 0:02:22.5]} 17... a5 {[%clk 0:02:30]} 18.
Rhe1 {[%clk 0:02:12.3]} 18... Rhc8 {[%clk 0:02:29]} 19. Re2 {[%clk 0:01:51.7]}
19... g6 {[%clk 0:02:28]} 20. Kc2 {[%clk 0:01:39.8]} 20... b6 {[%clk 0:02:26.5]}
21. Kb3 {[%clk 0:01:33.6]} 21... Bd8 {[%clk 0:02:25.5]} 22. Bb5 {[%clk
0:01:25.5]} 22... Bxb5 {[%clk 0:02:16.4]} 23. axb5 {[%clk 0:01:26.4]} 23... Bc7
{[%clk 0:02:17]} 24. Bxc7 {[%clk 0:01:25.9]} 24... Rxc7 {[%clk 0:02:17.9]} 25.
Rae1 {[%clk 0:01:26.5]} 25... Re8 {[%clk 0:02:16.4]} 26. f4 {[%clk 0:01:25.6]}
26... Rce7 {[%clk 0:01:36.8]} 27. g4 {[%clk 0:01:08.3]} 27... Rc8 {[%clk
0:01:30.8]} 28. Kc2 {[%clk 0:00:59.7]} 28... Rcc7 {[%clk 0:01:23.6]} 29. Kd3
{[%clk 0:00:58.6]} 29... Ra7 {[%clk 0:01:13.8]} 30. Ra1 {[%clk 0:00:42.8]} 30...
Rac7 {[%clk 0:01:13.4]} 31. Ra4 {[%clk 0:00:42.3]} 31... Ra7 {[%clk 0:01:07.6]}
32. Re1 {[%clk 0:00:39.2]} 32... Rac7 {[%clk 0:00:55.8]} 33. Rb1 {[%clk
0:00:36.5]} 33... e5 {[%clk 0:00:51.8]} 34. fxe5 {[%clk 0:00:36.4]} 34... fxe5
{[%clk 0:00:52.7]} 35. Rf1+ {[%clk 0:00:35.8]} 35... Kg7 {[%clk 0:00:49.9]} 36.
dxe5 {[%clk 0:00:33.8]} 36... Rxe5 {[%clk 0:00:50.8]} 37. Raf4 {[%clk
0:00:30.5]} 37... Rc5 {[%clk 0:00:49.6]} 38. Rf7+ {[%clk 0:00:26.9]} 38... Kh6
{[%clk 0:00:48]} 39. h4 {[%clk 0:00:26.7]} 39... Rxb5 {[%clk 0:00:37.5]} 40. g5+
{[%clk 0:00:22.1]} 40... Kh5 {[%clk 0:00:37.9]} 41. R1f4 {[%clk 0:00:19.8]}
41... h6 {[%clk 0:00:18]} 42. Rh7 {[%clk 0:00:20]} 42... Rxg5 {[%clk 0:00:16.3]}
43. hxg5 {[%clk 0:00:20.4]} 43... Kxg5 {[%clk 0:00:17.2]} 44. Rf2 {[%clk
0:00:20.9]} 44... h5 {[%clk 0:00:15.8]} 45. Rg2+ {[%clk 0:00:21.1]} 45... Kf6
{[%clk 0:00:16.3]} 46. Rh6 {[%clk 0:00:21.4]} 46... a4 {[%clk 0:00:15.3]} 47.
Rhxg6+ {[%clk 0:00:20.7]} 1-0

[Event "Early-Titled-Tuesday-Blitz-April-02-2024"]
[Site "Chess.com"]
[Date "2024.04.02"]
[Round "2"]
[White "IMRosen"]
[Black "PIwan"]
[Result "1-0"]
[WhiteElo "2699"]
[BlackElo "2423"]
[TimeControl "180+1"]
[EndTime "8:17:59 PDT"]
[Termination "IMRosen won by checkmate"]

1. d4 {[%clk 0:03:00.9]} 1... e6 {[%clk 0:03:00.9]} 2. Bf4 {[%clk 0:03:00.6]}
2... d5 {[%clk 0:03:01.1]} 3. e3 {[%clk 0:03:00.7]} 3... Bd6 {[%clk 0:03:01.5]}
4. Bxd6 {[%clk 0:03:01.2]} 4... Qxd6 {[%clk 0:03:01.3]} 5. Qg4 {[%clk
0:03:01.7]} 5... Qf8 {[%clk 0:02:39.7]} 6. Nc3 {[%clk 0:03:00.9]} 6... Nf6
{[%clk 0:02:39.5]} 7. Qg3 {[%clk 0:03:01]} 7... Kd8 {[%clk 0:02:02.5]} 8. Nb5
{[%clk 0:02:48.6]} 8... Na6 {[%clk 0:01:57.7]} 9. a3 {[%clk 0:02:44.9]} 9... Bd7
{[%clk 0:01:56.9]} 10. Nf3 {[%clk 0:02:39.3]} 10... Ne4 {[%clk 0:01:55.8]} 11.
Qf4 {[%clk 0:02:37.6]} 11... c6 {[%clk 0:01:48.8]} 12. Nc3 {[%clk 0:02:30.7]}
12... Nxc3 {[%clk 0:01:48.6]} 13. bxc3 {[%clk 0:02:31.6]} 13... Nc7 {[%clk
0:01:48.8]} 14. Bd3 {[%clk 0:02:09.9]} 14... f6 {[%clk 0:01:48.6]} 15. c4 {[%clk
0:02:09.4]} 15... g5 {[%clk 0:01:43.2]} 16. Qg3 {[%clk 0:02:09.5]} 16... h5
{[%clk 0:01:41]} 17. h4 {[%clk 0:02:09.7]} 17... g4 {[%clk 0:01:40.6]} 18. Nd2
{[%clk 0:02:09.9]} 18... Qe7 {[%clk 0:01:35]} 19. O-O {[%clk 0:02:08]} 19... Ne8
{[%clk 0:01:17.4]} 20. Rab1 {[%clk 0:02:04.8]} 20... b6 {[%clk 0:01:11.2]} 21.
a4 {[%clk 0:02:01.2]} 21... Qd6 {[%clk 0:01:10.4]} 22. f4 {[%clk 0:01:47.2]}
22... gxf3 {[%clk 0:00:47]} 23. Qxf3 {[%clk 0:01:47.1]} 23... Kc7 {[%clk
0:00:45.6]} 24. a5 {[%clk 0:01:38.7]} 24... f5 {[%clk 0:00:38.7]} 25. axb6+
{[%clk 0:01:30]} 25... axb6 {[%clk 0:00:39.6]} 26. Rxb6 {[%clk 0:01:30.3]} 26...
Rg8 {[%clk 0:00:32.9]} 27. Rfb1 {[%clk 0:01:20.8]} 27... Nf6 {[%clk 0:00:25]}
28. Rb7+ {[%clk 0:01:13.3]} 28... Kd8 {[%clk 0:00:25.3]} 29. c5 {[%clk
0:01:09.8]} 29... Qg3 {[%clk 0:00:23.1]} 30. Qxg3 {[%clk 0:01:04]} 30... Rxg3
{[%clk 0:00:24]} 31. Nf3 {[%clk 0:01:01]} 31... Ng4 {[%clk 0:00:20]} 32. Bf1
{[%clk 0:00:18.5]} 32... Rc8 {[%clk 0:00:18.3]} 33. Ra7 {[%clk 0:00:16.8]} 33...
Rc7 {[%clk 0:00:16.4]} 34. Rb8+ {[%clk 0:00:16.2]} 34... Bc8 {[%clk 0:00:15.6]}
35. Raa8 {[%clk 0:00:16.9]} 35... Kd7 {[%clk 0:00:15.3]} 36. c4 {[%clk
0:00:10.2]} 36... Bb7 {[%clk 0:00:12]} 37. Rd8+ {[%clk 0:00:08.4]} 37... Ke7
{[%clk 0:00:12.5]} 38. Re8+ {[%clk 0:00:09]} 38... Kf6 {[%clk 0:00:11.4]} 39.
Rf8+ {[%clk 0:00:09.2]} 39... Rf7 {[%clk 0:00:11.6]} 40. Rxf7+ {[%clk
0:00:09.6]} 40... Kxf7 {[%clk 0:00:12.5]} 41. Ra7 {[%clk 0:00:10.2]} 41... Nxe3
{[%clk 0:00:11.6]} 42. Rxb7+ {[%clk 0:00:10.7]} 42... Kf6 {[%clk 0:00:11.3]} 43.
Kf2 {[%clk 0:00:10.7]} 43... f4 {[%clk 0:00:11.4]} 44. Ne5 {[%clk 0:00:11.4]}
44... Nd1+ {[%clk 0:00:09.6]} 45. Ke1 {[%clk 0:00:11.1]} 45... Nc3 {[%clk
0:00:08.9]} 46. Rf7# {[%clk 0:00:11.4]} 1-0

[Event "Early-Titled-Tuesday-Blitz-April-02-2024"]
[Site "Chess.com"]
[Date "2024.04.02"]
[Round "2"]
[White "JaackCamel"]
[Black "andrzej"]
[Result "0-1"]
[WhiteElo "2183"]
[BlackElo "2484"]
[TimeControl "180+1"]
[EndTime "8:17:59 PDT"]
[Termination "andrzej won on time"]

1. d4 {[%clk 0:03:00.9]} 1... Nf6 {[%clk 0:02:58.3]} 2. c4 {[%clk 0:02:59.7]}
2... e6 {[%clk 0:02:58.6]} 3. Nc3 {[%clk 0:02:58.9]} 3... d5 {[%clk 0:02:59]} 4.
cxd5 {[%clk 0:02:58.3]} 4... exd5 {[%clk 0:02:59]} 5. Bg5 {[%clk 0:02:57.6]}
5... c6 {[%clk 0:02:59.6]} 6. e3 {[%clk 0:02:56.2]} 6... h6 {[%clk 0:03:00.1]}
7. Bh4 {[%clk 0:02:55.6]} 7... Be7 {[%clk 0:03:00.7]} 8. Bd3 {[%clk 0:02:54.7]}
8... O-O {[%clk 0:03:01]} 9. Qc2 {[%clk 0:02:52.6]} 9... Re8 {[%clk 0:02:58.4]}
10. Nge2 {[%clk 0:02:51.7]} 10... Nbd7 {[%clk 0:02:56.9]} 11. O-O {[%clk
0:02:50.7]} 11... b5 {[%clk 0:02:57.3]} 12. h3 {[%clk 0:02:40.6]} 12... a5
{[%clk 0:02:53.5]} 13. Rad1 {[%clk 0:02:36.3]} 13... Ba6 {[%clk 0:02:45.1]} 14.
Bg3 {[%clk 0:02:28.8]} 14... Rc8 {[%clk 0:02:37.3]} 15. Qb1 {[%clk 0:02:10.8]}
15... Bf8 {[%clk 0:02:36.4]} 16. Rfe1 {[%clk 0:01:58.4]} 16... Qb6 {[%clk
0:02:35.9]} 17. Rc1 {[%clk 0:01:53.9]} 17... b4 {[%clk 0:02:25.7]} 18. Na4
{[%clk 0:01:47.1]} 18... Qa7 {[%clk 0:02:23.4]} 19. Red1 {[%clk 0:01:31.2]}
19... Ne4 {[%clk 0:02:22]} 20. Bh2 {[%clk 0:01:20.1]} 20... Ndf6 {[%clk
0:02:17.2]} 21. Nf4 {[%clk 0:01:13.9]} 21... Bd6 {[%clk 0:02:10.4]} 22. Bxa6
{[%clk 0:01:05.9]} 22... Qxa6 {[%clk 0:02:09.5]} 23. Qd3 {[%clk 0:01:04.4]}
23... Qa7 {[%clk 0:02:06.3]} 24. b3 {[%clk 0:00:51.9]} 24... Qb8 {[%clk
0:02:05.4]} 25. g3 {[%clk 0:00:34.5]} 25... Qb7 {[%clk 0:01:39]} 26. Rc2 {[%clk
0:00:32.5]} 26... Rb8 {[%clk 0:01:18.3]} 27. Kg2 {[%clk 0:00:31.5]} 27... Rec8
{[%clk 0:01:17.3]} 28. Rdc1 {[%clk 0:00:31]} 28... Qd7 {[%clk 0:01:16]} 29. f3
{[%clk 0:00:20.2]} 29... Ng5 {[%clk 0:01:15.7]} 30. h4 {[%clk 0:00:19.7]} 30...
Bxf4 {[%clk 0:01:12.8]} 31. hxg5 {[%clk 0:00:16.1]} 31... Bxg5 {[%clk
0:01:09.3]} 32. Nc5 {[%clk 0:00:16]} 32... Qe8 {[%clk 0:01:04]} 33. Re1 {[%clk
0:00:13.4]} 33... h5 {[%clk 0:01:02.9]} 34. Rce2 {[%clk 0:00:12.4]} 34... Nd7
{[%clk 0:00:55.7]} 35. Rc2 {[%clk 0:00:10]} 35... g6 {[%clk 0:00:52.7]} 36. Bg1
{[%clk 0:00:09.6]} 36... Be7 {[%clk 0:00:44.7]} 37. Nxd7 {[%clk 0:00:08.8]}
37... Qxd7 {[%clk 0:00:44.8]} 38. Bf2 {[%clk 0:00:08.5]} 38... Kg7 {[%clk
0:00:43.9]} 39. Rh1 {[%clk 0:00:08.2]} 39... Re8 {[%clk 0:00:42]} 40. Rcc1
{[%clk 0:00:07.7]} 40... Bd6 {[%clk 0:00:41.4]} 41. Qa6 {[%clk 0:00:06.7]} 41...
Rbc8 {[%clk 0:00:33.3]} 42. Qd3 {[%clk 0:00:05.7]} 42... Rh8 {[%clk 0:00:30.3]}
43. Rh4 {[%clk 0:00:05.6]} 43... Be7 {[%clk 0:00:29.8]} 44. Rf4 {[%clk
0:00:03.9]} 44... Bg5 {[%clk 0:00:28.6]} 45. Rc5 {[%clk 0:00:01.4]} 45... Bxf4
{[%clk 0:00:28]} 46. exf4 {[%clk 0:00:01.2]} 46... h4 {[%clk 0:00:26.4]} 47. g4
{[%clk 0:00:01.2]} 47... h3+ {[%clk 0:00:26.3]} 48. Kh2 {[%clk 0:00:01.4]} 48...
Qe7 {[%clk 0:00:24.3]} 0-1